fUSD/lending_fUSD_20240424
["ID","MTS","AMOUNT","RATE_DAILY","PERIOD"]
[323447134,1713991907343,-579.71107041,0.00019178,2]
[323447135,1713991907353,-579.71107041,0.00019178,2]
[323447136,1713991907363,-579.71107041,0.00019178,2]
[323447137,1713991907372,-579.71107041,0.00019178,2]
[323447138,1713991907382,-579.71107041,0.00019178,2]
[323447139,1713991907392,-579.71107041,0.00019178,2]
[323447140,1713991907401,-579.71107041,0.00019178,2]
[323447141,1713991907411,-579.71107041,0.00019178,2]
[323447142,1713991907421,-579.71107041,0.00019178,2]
[323447143,1713991907431,-579.71107041,0.00019178,2]
[323447144,1713991907440,-579.71107041,0.00019178,2]
[323447145,1713991907450,-579.71107041,0.00019178,2]
[323447146,1713991907462,-579.71107041,0.00019178,2]
[323447147,1713991907472,-579.71107041,0.00019178,2]
[323447148,1713991907481,-579.71107041,0.00019178,2]
[323447149,1713991907492,-579.71107041,0.00019178,2]
[323447150,1713991907502,-579.71107041,0.00019178,2]
[323447151,1713991907511,-579.71107041,0.00019178,2]
[323447152,1713991907521,-579.71107041,0.00019178,2]
[323447153,1713991907531,-579.71107041,0.00019178,2]
[323447154,1713991907540,-500.0,0.00019178,2]
[323447155,1713991907550,-500.0,0.00019178,2]
[323447156,1713991907559,-500.0,0.00019178,2]
[323447157,1713991907569,-500.0,0.00019178,2]
[323447158,1713991907578,-500.0,0.00019178,2]
[323447159,1713991907587,-500.0,0.00019178,2]
[323447160,1713991907597,-500.0,0.00019178,2]
[323447161,1713991907607,-500.0,0.00019178,2]
[323447162,1713991907616,-513.83163139,0.00019178,2]
[323447163,1713991907625,-500.0,0.00019178,2]
[323447164,1713991907635,-509.85562252,0.00019178,2]
[323447165,1713991907644,-561.8738067,0.00019178,2]
[323447166,1713991907653,-561.8738067,0.00019178,2]
[323447167,1713991907663,-561.8738067,0.00019178,2]
[323447168,1713991907675,-561.8738067,0.00019178,2]
[323447169,1713991907684,-561.8738067,0.00019178,2]
[323447170,1713991907694,-561.8738067,0.00019178,2]
[323447171,1713991907704,-561.8738067,0.00019178,2]
[323447172,1713991907714,-561.8738067,0.00019178,2]
[323447173,1713991907723,-561.8738067,0.00019178,2]
[323447174,1713991907733,-561.8738067,0.00019178,2]
[323447175,1713991907742,-561.8738067,0.00019178,2]
[323447176,1713991907751,-561.8738067,0.00019178,2]
[323447177,1713991907761,-561.8738067,0.00019178,2]
[323447178,1713991907770,-561.8738067,0.00019178,2]
[323447179,1713991907780,-561.8738067,0.00019178,2]
[323447180,1713991907789,-561.8738067,0.00019178,2]
[323447181,1713991907799,-561.8738067,0.00019178,2]
[323447182,1713991907808,-561.8738067,0.00019178,2]
[323447183,1713991907818,-561.8738067,0.00019178,2]
[323447184,1713991907827,-561.8738067,0.00019178,2]
[323447185,1713991907836,-561.8738067,0.00019178,2]
[323447186,1713991907845,-561.8738067,0.00019178,2]
[323447187,1713991907855,-561.8738067,0.00019178,2]
[323447188,1713991907864,-561.8738067,0.00019178,2]
[323447189,1713991907873,-561.8738067,0.00019178,2]
[323447190,1713991907884,-500.0,0.00019178,2]
[323447191,1713991907893,-500.0,0.00019178,2]
[323447192,1713991907902,-500.0,0.00019178,2]
[323447193,1713991907911,-500.0,0.00019178,2]
[323447194,1713991907920,-500.0,0.00019178,2]
[323447195,1713991907929,-500.0,0.00019178,2]
[323447196,1713991907939,-500.0,0.00019178,2]
[323447197,1713991907948,-559.73131252,0.00019178,2]
[323447198,1713991907958,-500.0,0.00019178,2]
[323447199,1713991907967,-500.0,0.00019178,2]
[323447200,1713991907977,-500.0,0.00019178,2]
[323447201,1713991907987,-500.0,0.00019178,2]
[323447202,1713991907996,-500.0,0.00019178,2]
[323447203,1713991908005,-500.0,0.00019178,2]
[323447204,1713991908014,-500.0,0.00019178,2]
[323447205,1713991908024,-500.0,0.00019178,2]
[323447206,1713991908033,-561.8738066,0.00019178,2]
[323447207,1713991908043,-500.0,0.00019178,2]
[323447208,1713991908052,-500.0,0.00019178,2]
[323447209,1713991908062,-500.0,0.00019178,2]
[323447210,1713991908071,-212.84741104,0.00019178,2]
[323447211,1713991908080,-500.0,0.00019178,2]
[323447212,1713991908090,-500.0,0.00019178,2]
[323447213,1713991908099,-500.0,0.00019178,2]
[323447214,1713991908109,-500.0,0.00019178,2]
[323447215,1713991908118,-500.0,0.00019178,2]
[323447216,1713991908127,-500.0,0.00019178,2]
[323447217,1713991908136,-500.0,0.00019178,2]
[323447218,1713991908146,-500.0,0.00019178,2]
[323447219,1713991908155,-500.0,0.00019178,2]
[323447220,1713991908164,-500.0,0.00019178,2]
[323447221,1713991908173,-500.0,0.00019178,2]
[323447222,1713991908182,-500.0,0.00019178,2]
[323447223,1713991908192,-500.0,0.00019178,2]
[323447224,1713991908201,-500.0,0.00019178,2]
[323447225,1713991908212,-500.0,0.00019178,2]
[323447226,1713991908221,-500.0,0.00019178,2]
[323447227,1713991908230,-500.0,0.00019178,2]
[323447228,1713991908239,-500.0,0.00019178,2]
[323447229,1713991908248,-500.0,0.00019178,2]
[323447230,1713991908258,-500.0,0.00019178,2]
[323447231,1713991908267,-500.0,0.00019178,2]
[323447232,1713991908276,-500.0,0.00019178,2]
[323447233,1713991908285,-500.0,0.00019178,2]
[323447234,1713991908294,-500.0,0.00019178,2]
[323447235,1713991908304,-500.0,0.00019178,2]
[323447236,1713991908315,-500.0,0.00019178,2]
[323447237,1713991908324,-500.0,0.00019178,2]
[323447238,1713991908334,-500.0,0.00019178,2]
[323447239,1713991908343,-500.0,0.00019178,2]
[323447240,1713991908353,-500.0,0.00019178,2]
[323447241,1713991908362,-500.0,0.00019178,2]
[323447242,1713991908371,-500.0,0.00019178,2]
[323447243,1713991908380,-500.0,0.00019178,2]
[323447244,1713991908391,-500.0,0.00019178,2]
[323447245,1713991908400,-500.0,0.00019178,2]
[323447246,1713991908409,-500.0,0.00019178,2]
[323447247,1713991908418,-500.0,0.00019178,2]
[323447248,1713991908427,-500.0,0.00019178,2]
[323447249,1713991908436,-500.0,0.00019178,2]
[323447250,1713991908445,-500.0,0.00019178,2]
[323447251,1713991908456,-500.0,0.00019178,2]
[323447252,1713991908464,-500.0,0.00019178,2]
[323447253,1713991908473,-500.0,0.00019178,2]
[323447254,1713991908483,-500.0,0.00019178,2]
[323447255,1713991908492,-500.0,0.00019178,2]
[323447256,1713991908501,-500.0,0.00019178,2]
[323447257,1713991908511,-500.0,0.00019178,2]
[323447258,1713991908520,-500.0,0.00019178,2]
[323447259,1713991908530,-500.0,0.00019178,2]
[323447260,1713991908540,-552.65092074,0.00019178,2]
[323447261,1713991908549,-500.0,0.00019178,2]
[323447262,1713991908559,-500.0,0.00019178,2]
[323447263,1713991908570,-500.0,0.00019178,2]
[323447264,1713991908580,-550.0,0.00019178,2]
[323447265,1713991908590,-500.0,0.00019178,2]
[323447266,1713991908600,-500.0,0.00019178,2]
[323447267,1713991908609,-500.0,0.00019178,2]
[323447268,1713991908619,-500.0,0.00019178,2]
[323447269,1713991908629,-500.0,0.00019178,2]
[323447270,1713991908639,-500.0,0.00019178,2]
[323447271,1713991908650,-500.0,0.00019178,2]
[323447272,1713991908660,-500.0,0.00019178,2]
[323447273,1713991908670,-441.03899069,0.00019178,2]
[323447274,1713991908681,-432.3116972,0.00019178,2]
[323447275,1713991908690,-888.0,0.00019178,2]
[323447276,1713991908701,-888.0,0.00019178,2]
[323447277,1713991908711,-888.0,0.00019178,2]
[323447278,1713991908721,-888.0,0.00019178,2]
[323447279,1713991908730,-888.0,0.00019178,2]
[323447280,1713991908740,-888.0,0.00019178,2]
[323447281,1713991908750,-888.0,0.00019178,2]
[323447282,1713991908759,-888.0,0.00019178,2]
[323447283,1713991908768,-888.0,0.00019178,2]
[323447284,1713991908778,-888.0,0.00019178,2]
[323447285,1713991908787,-888.0,0.00019178,2]
[323447286,1713991908797,-888.0,0.00019178,2]
[323447287,1713991908807,-888.0,0.00019178,2]
[323447288,1713991908817,-888.0,0.00019178,2]
[323447289,1713991908826,-888.0,0.00019178,2]
[323447290,1713991908836,-888.0,0.00019178,2]
[323447291,1713991908846,-888.0,0.00019178,2]
[323447292,1713991908856,-888.0,0.00019178,2]
[323447293,1713991908866,-888.0,0.00019178,2]
[323447294,1713991908875,-888.0,0.00019178,2]
[323447295,1713991908884,-946.29842344,0.00019178,2]
[323447296,1713991908895,-500.0,0.00019178,2]
[323447297,1713991908905,-500.0,0.00019178,2]
[323447298,1713991908914,-500.0,0.00019178,2]
[323447299,1713991908924,-500.0,0.00019178,2]
[323447300,1713991908934,-500.0,0.00019178,2]
[323447301,1713991908943,-500.0,0.00019178,2]
[323447302,1713991908953,-500.0,0.00019178,2]
[323447303,1713991908963,-500.0,0.00019178,2]
[323447304,1713991908972,-500.0,0.00019178,2]
[323447305,1713991908982,-500.0,0.00019178,2]
[323447306,1713991908991,-500.0,0.00019178,2]
[323447307,1713991909001,-500.0,0.00019178,2]
[323447308,1713991909010,-503.83813326,0.00019178,2]
[323447309,1713991909019,-500.0,0.00019178,2]
[323447310,1713991909029,-500.0,0.00019178,2]
[323447311,1713991909038,-500.0,0.00019178,2]
[323447312,1713991909048,-500.0,0.00019178,2]
[323447313,1713991909057,-500.0,0.00019178,2]
[323447314,1713991909067,-500.0,0.00019178,2]
[323447315,1713991909165,-500.0,0.00019178,2]
[323447316,1713991909175,-500.0,0.00019178,2]
[323447317,1713991909185,-500.0,0.00019178,2]
[323447318,1713991909196,-500.0,0.00019178,2]
[323447319,1713991909206,-500.0,0.00019178,2]
[323447320,1713991909216,-500.0,0.00019178,2]
[323447321,1713991909226,-500.0,0.00019178,2]
[323447322,1713991909235,-450.0,0.00019178,2]
[323447323,1713991909245,-500.0,0.00019178,2]
[323447324,1713991909254,-200.0,0.00019178,2]
[323447325,1713991909264,-200.0,0.00019178,2]
[323447326,1713991909274,-200.0,0.00019178,2]
[323447327,1713991909283,-200.0,0.00019178,2]
[323447328,1713991909292,-200.0,0.00019178,2]
[323447329,1713991909302,-200.0,0.00019178,2]
[323447330,1713991909383,-169.0,0.00019178,2]
[323447331,1713991909393,-19546.09,0.00019178,2]
[323447332,1713991909403,-663.012282,0.00019178,2]
[323447333,1713991909412,-663.012282,0.00019178,2]
[323447334,1713991909422,-663.012282,0.00019178,2]
[323447335,1713991909431,-663.012282,0.00019178,2]
[323447336,1713991909441,-663.012282,0.00019178,2]
[323447337,1713991909451,-663.012282,0.00019178,2]
[323447338,1713991909460,-663.012282,0.00019178,2]
[323447339,1713991909469,-663.012282,0.00019178,2]
[323447340,1713991909480,-663.012282,0.00019178,2]
[323447341,1713991909489,-663.012282,0.00019178,2]
[323447342,1713991909499,-663.012282,0.00019178,2]
[323447343,1713991909508,-663.012282,0.00019178,2]
[323447344,1713991909518,-663.012282,0.00019178,2]
[323447345,1713991909527,-663.012282,0.00019178,2]
[323447346,1713991909537,-663.012282,0.00019178,2]
[323447347,1713991909546,-663.012282,0.00019178,2]
[323447348,1713991909556,-663.012282,0.00019178,2]
[323447349,1713991909565,-663.012282,0.00019178,2]
[323447350,1713991909575,-663.012282,0.00019178,2]
[323447351,1713991909584,-663.012289,0.00019178,2]
[323447352,1713991909594,-3123.3,0.00019178,2]
[323447353,1713991909604,-55000.0,0.00019178,2]
[323447354,1713991909613,-320.19796154,0.00019178,2]
[323447355,1713991909622,-301.6,0.0001918,2]
[323447356,1713991909632,-605.65409209,0.00019185,2]
[323447357,1713991909642,-950.06248189,0.0001919,2]
[323447358,1713991909651,-4196.7,0.000192,2]
[323447359,1713991909661,-3746.73,0.000192,2]
[323447360,1713991909671,-4862.51,0.000192,2]
[323447361,1713991909680,-13378.21937131,0.000192,2]
[323447362,1713991909690,-1000.0,0.00019204,2]
[323447363,1713991909699,-1670.0,0.00019222,2]
[323447364,1713991909711,-155.0,0.0001926,2]
[323447365,1713991909722,-166.66666666,0.00019268,2]
[323447366,1713991909732,-368.07,0.00019312,2]
[323447367,1713991909742,-956.21769476,0.00019312,2]
[323447368,1713991909751,-1000.0,0.00019315,2]
[323447369,1713991909761,-437.99720832,0.00019333,2]
[323447370,1713991909771,-159.45469255,0.00019352,2]
[323447371,1713991909781,-159.35864408,0.00019362,2]
[323447372,1713991909791,-219.11252096,0.00019391,2]
[323447373,1713991909800,-950.06248189,0.00019423,2]
[323447374,1713991909810,-1000.0,0.00019426,2]
[323447375,1713991909820,-152.46031033,0.00019427,2]
[323447376,1713991909829,-1924.74,0.00019452,2]
[323447377,1713991909839,-437.99720832,0.00019453,2]
[323447378,1713991909848,-605.65409209,0.00019471,2]
[323447379,1713991909858,-1000.0,0.000195,2]
[323447380,1713991909868,-150.0,0.000195,2]
[323447381,1713991909878,-150.0,0.000195,2]
[323447382,1713991909887,-164.83673246,0.00019501,2]
[323447383,1713991909896,-437.99720832,0.00019514,2]
[323447384,1713991909906,-212.07330012,0.00019528,2]
[323447385,1713991909916,-1000.0,0.00019536,2]
[323447386,1713991909926,-156.64,0.0001957,15]
[323447387,1713991909936,-150.5,0.0001958,15]
[323447388,1713991909945,-216.0,0.0001959,2]
[323447389,1713991909954,-304.0,0.0001959,2]
[323447390,1713991909964,-150.5,0.0001959,15]
[323447391,1713991909973,-570.43730335,0.0001959,2]
[323447392,1713991909983,-2521.26973092,0.00019591,2]
[323447393,1713991909993,-154.44793795,0.00019608,2]
[323447394,1713991910003,-151.59497118,0.00019614,2]
[323447395,1713991910013,-163.96849989,0.00019615,2]
[323447396,1713991910023,-151.33722103,0.00019616,2]
[323447397,1713991910033,-242.73350914,0.00019631,2]
[323447398,1713991910043,-301.6,0.00019635,2]
[323447399,1713991910052,-517.0,0.00019644,2]
[323447400,1713991910062,-1000.0,0.00019647,2]
[323447401,1713991910071,-214.34,0.00019658,2]
[323447402,1713991910081,-206.65259777,0.0001966,2]
[323447403,1713991910090,-2359.0,0.00019672,2]
[323447404,1713991910101,-1000.0,0.000197,2]
[323447405,1713991910111,-153.7065431,0.00019705,2]
[323447406,1713991910121,-1924.74,0.00019726,2]
[323447407,1713991910130,-570.43730335,0.00019746,2]
[323447408,1713991910139,-605.65409209,0.00019756,2]
[323447409,1713991910148,-1000.0,0.00019758,2]
[323447410,1713991910158,-950.06248189,0.00019763,2]
[323447411,1713991910167,-155.97008448,0.00019797,2]
[323447412,1713991910177,-1000.0,0.000198,2]
[323447413,1713991910187,-242.73350914,0.00019841,2]
[323447414,1713991910197,-956.21769476,0.00019866,2]
[323447415,1713991910207,-1000.0,0.00019868,2]
[323447416,1713991910217,-159.45469255,0.0001988,2]
[323447417,1713991910227,-72477.49591514,0.00019885,2]
[323447418,1713991910237,-151.33722103,0.00019886,2]
[323447419,1713991910247,-164.83673246,0.00019897,2]
[323447420,1713991910256,-1000.0,0.000199,2]
[323447421,1713991910267,-4553.34586554,0.000199,3]
[323447422,1713991910277,-483.40406287,0.000199,2]
[323447423,1713991910287,-483.40406272,0.000199,2]
[323447424,1713991910296,-483.40406272,0.000199,2]
[323447425,1713991910308,-483.40406272,0.000199,2]
[323447426,1713991910319,-483.40406272,0.000199,2]
[323447427,1713991910328,-483.40406272,0.000199,2]
[323447428,1713991910338,-483.40406272,0.000199,2]
[323447429,1713991910347,-483.40406272,0.000199,2]
[323447430,1713991910358,-483.40406272,0.000199,2]
[323447431,1713991910367,-483.40406272,0.000199,2]
[323447432,1713991910377,-483.40406272,0.000199,2]
[323447433,1713991910386,-483.40406272,0.000199,2]
[323447434,1713991910395,-483.40406272,0.000199,2]
[323447435,1713991910406,-483.40406272,0.000199,2]
[323447436,1713991910415,-483.40406272,0.000199,2]
[323447437,1713991910425,-483.40406272,0.000199,2]
[323447438,1713991910435,-483.40406272,0.000199,2]
[323447439,1713991910445,-483.40406272,0.000199,2]
[323447440,1713991910454,-483.40406272,0.000199,2]
[323447441,1713991910465,-483.40406272,0.000199,2]
[323447442,1713991910474,-483.40406272,0.000199,2]
[323447443,1713991910484,-483.40406272,0.000199,2]
[323447444,1713991910494,-483.40406272,0.000199,2]
[323447445,1713991910504,-483.40406272,0.000199,2]
[323447446,1713991910513,-483.40406272,0.000199,2]
[323447447,1713991910523,-483.40406272,0.000199,2]
[323447448,1713991910533,-483.40406272,0.000199,2]
[323447449,1713991910542,-483.40406272,0.000199,2]
[323447450,1713991910551,-483.40406272,0.000199,2]
[323447451,1713991910560,-483.40406272,0.000199,2]
[323447452,1713991910570,-483.40406272,0.000199,2]
[323447453,1713991910579,-483.40406272,0.000199,2]
[323447454,1713991910588,-483.40406272,0.000199,2]
[323447455,1713991910598,-483.40406272,0.000199,2]
[323447456,1713991910607,-483.40406272,0.000199,2]
[323447457,1713991910619,-483.40406272,0.000199,2]
[323447458,1713991910629,-483.40406272,0.000199,2]
[323447459,1713991910639,-483.40406272,0.000199,2]
[323447460,1713991910648,-483.40406272,0.000199,2]
[323447461,1713991910658,-483.40406272,0.000199,2]
[323447462,1713991910668,-483.40406272,0.000199,2]
[323447463,1713991910677,-483.40406272,0.000199,2]
[323447464,1713991910687,-483.40406272,0.000199,2]
[323447465,1713991910696,-483.40406272,0.000199,2]
[323447466,1713991910707,-483.40406272,0.000199,2]
[323447467,1713991910716,-483.40406272,0.000199,2]
[323447468,1713991910725,-483.40406272,0.000199,2]
[323447469,1713991910734,-483.40406272,0.000199,2]
[323447470,1713991910743,-483.40406272,0.000199,2]
[323447471,1713991910753,-483.40406272,0.000199,2]
[323447472,1713991910763,-483.40406272,0.000199,2]
[323447473,1713991910772,-483.40406272,0.000199,2]
[323447474,1713991910782,-483.40406272,0.000199,2]
[323447475,1713991910791,-483.40406272,0.000199,2]
[323447476,1713991910800,-483.40406272,0.000199,2]
[323447477,1713991910810,-483.40406272,0.000199,2]
[323447478,1713991910819,-483.40406272,0.000199,2]
[323447479,1713991910828,-483.40406272,0.000199,2]
[323447480,1713991910838,-483.40406272,0.000199,2]
[323447481,1713991910847,-483.40406272,0.000199,2]
[323447482,1713991910856,-483.40406272,0.000199,2]
[323447483,1713991910866,-483.40406272,0.000199,2]
[323447484,1713991910875,-483.40406272,0.000199,2]
[323447485,1713991910885,-483.40406272,0.000199,2]
[323447486,1713991910894,-483.40406272,0.000199,2]
[323447487,1713991910904,-483.40406272,0.000199,2]
[323447488,1713991910913,-483.40406272,0.000199,2]
[323447489,1713991910922,-483.40406272,0.000199,2]
[323447490,1713991910931,-483.40406272,0.000199,2]
[323447491,1713991910940,-483.40406272,0.000199,2]
[323447492,1713991910949,-483.40406272,0.000199,2]
[323447493,1713991910958,-483.40406272,0.000199,2]
[323447494,1713991910968,-483.40406272,0.000199,2]
[323447495,1713991910977,-483.40406272,0.000199,2]
[323447496,1713991910986,-483.40406272,0.000199,2]
[323447497,1713991910996,-483.40406272,0.000199,2]
[323447498,1713991911005,-483.40406272,0.000199,2]
[323447499,1713991911015,-483.40406272,0.000199,2]
[323447500,1713991911024,-483.40406272,0.000199,2]
[323447501,1713991911033,-483.40406272,0.000199,2]
[323447502,1713991911042,-483.40406272,0.000199,2]
[323447503,1713991911052,-483.40406272,0.000199,2]
[323447504,1713991911062,-483.40406272,0.000199,2]
[323447505,1713991911071,-483.40406272,0.000199,2]
[323447506,1713991911081,-483.40406272,0.000199,2]
[323447507,1713991911091,-483.40406272,0.000199,2]
[323447508,1713991911101,-483.40406272,0.000199,2]
[323447509,1713991911110,-483.40406272,0.000199,2]
[323447510,1713991911120,-483.40406272,0.000199,2]
[323447511,1713991911129,-483.40406272,0.000199,2]
[323447512,1713991911138,-335304.0,0.0001992,2]
[323447513,1713991911149,-166.66666667,0.00019921,2]
[323447514,1713991911158,-950.06248189,0.00019929,2]
[323447515,1713991911168,-151.59497118,0.00019957,2]
[323447516,1713991911177,-154.98058797,0.0001997,2]
[323447517,1713991911186,-1000.0,0.00019979,2]
[323447518,1713991911195,-25682.1275374,0.00019986,2]
[323447519,1713991911205,-25239.7980992,0.00019986,2]
[323447520,1713991911215,-24797.468661,0.00019986,2]
[323447521,1713991911225,-11716.8619204,0.00019986,2]
[323447522,1713991911234,-11579.877095,0.00019986,2]
[323447523,1713991911243,-11442.8922696,0.00019986,2]
[323447524,1713991911252,-11305.9074442,0.00019986,2]
[323447525,1713991911263,-43090.0040819,0.00019986,2]
[323447526,1713991911273,-42586.2278382,0.00019986,2]
[323447527,1713991911283,-42082.4515945,0.00019986,2]
[323447528,1713991911292,-41578.6753508,0.00019986,2]
[323447529,1713991911302,-3663.2500355,0.00019986,2]
[323447530,1713991911315,-3620.4220437,0.00019986,2]
[323447531,1713991911325,-3577.5940519,0.00019986,2]
[323447532,1713991911334,-3534.76606,0.00019986,2]
[323447533,1713991911346,-10050.5131134,0.00019986,2]
[323447534,1713991911356,-9933.0099975,0.00019986,2]
[323447535,1713991911366,-9815.5068816,0.00019986,2]
[323447536,1713991911375,-9698.0037657,0.00019986,2]
[323447537,1713991911386,-10017.363756,0.00019988,2]
[323447538,1713991911396,-153.7065431,0.00019995,2]
[323447539,1713991911406,-156.15926377,0.00019998,2]
[323447540,1713991911416,-50000.0,0.0002,2]
[323447541,1713991911426,-46536.37268535,0.0002,2]
[323447542,1713991911436,-11911.76812015,0.0002,2]
[323447543,1713991911445,-428.76615097,0.0002,2]
[323447544,1713991911455,-169.23748471,0.0002,2]
[323447545,1713991911469,-1980.35668423,0.0002,2]
[323447546,1713991911478,-207.63181571,0.0002,2]
[323447547,1713991911493,-3391.05929083,0.0002,2]
[323447548,1713991911503,-234.59313981,0.0002,2]
[323447549,1713991911512,-191.5839202,0.0002,2]
[323447550,1713991911522,-14331.0014488,0.0002,2]
[323447551,1713991911532,-2413.63367505,0.0002,2]
[323447552,1713991911543,-155.0,0.0002,2]
[323447553,1713991911554,-200.0,0.0002,2]
[323447554,1713991911563,-176.0,0.0002,2]
[323447555,1713991911572,-966.0,0.0002,2]
[323447556,1713991911582,-652.4,0.0002,2]
[323447557,1713991911591,-11540.40245735,0.0002,5]
[323447558,1713991911601,-4521.29310008,0.0002,2]
[323447559,1713991911610,-2000.0,0.0002,2]
[323447560,1713991911619,-1924.90648634,0.0002,2]
[323447561,1713991911629,-750.0,0.0002,2]
[323447562,1713991911638,-1190.42678,0.0002,2]
[323447563,1713991911647,-1000.0,0.0002,2]
[323447564,1713991911657,-155.0,0.0002,2]
[323447565,1713991911666,-23371.56,0.0002,3]
[323447566,1713991911676,-150.0,0.0002,2]
[323447567,1713991911685,-807.84,0.0002,2]
[323447568,1713991911695,-995.41110836,0.0002,2]
[323447569,1713991911704,-290.18193732,0.0002,2]
[323447570,1713991911718,-742.38348241,0.0002,2]
[323447571,1713991911728,-253.34614317,0.0002,2]
[323447572,1713991911737,-199.19760059,0.0002,2]
[323447573,1713991911747,-651.95032567,0.0002,2]
[323447574,1713991911757,-238.22,0.0002,2]
[323447575,1713991911766,-1313084.51265425,0.0002,3]
[323447576,1713991911776,-5857.08618307,0.0002,2]
[323447577,1713991911785,-2999.99,0.0002,2]
[323447578,1713991911795,-2999.97,0.0002,2]
[323447579,1713991911805,-3000.0,0.0002,2]
[323447580,1713991911815,-3000.0,0.0002,2]
[323447581,1713991911824,-3005.29,0.0002,2]
[323447582,1713991911834,-14707.45930467,0.0002,2]
[323447583,1713991911844,-7067.30821961,0.0002,2]
[323447584,1713991911853,-3727.73593254,0.0002,2]
[323447585,1713991911863,-6653.0,0.0002,2]
[323447586,1713991911872,-14532.59875971,0.0002,2]
[323447587,1713991911882,-3950.0,0.0002,2]
[323447588,1713991911891,-2460.78780225,0.0002,2]
[323447589,1713991911901,-7549.18888818,0.0002,2]
[323447590,1713991911910,-2552.46758294,0.0002,2]
[323447591,1713991911919,-11000.0,0.0002,3]
[323447592,1713991911929,-218.98836075,0.0002,4]
[323447593,1713991911938,-786.27082301,0.0002,4]
[323447594,1713991911947,-3033.62835959,0.0002,5]
[323447595,1713991911956,-1489.44247931,0.0002,2]
[323447596,1713991911973,-180.30713748,0.0002,2]
[323447597,1713991911982,-276.87210493,0.0002,2]
[323447598,1713991911992,-19460.11027708,0.0002,2]
[323447599,1713991912001,-8991.02253135,0.0002,2]
[323447600,1713991912011,-29572893.38130462,0.0002,5]
[323447601,1713991912434,-0.00337398,0.0002,5]
[323447602,1713991912522,-720.134902,0.00011505,2]
[323447603,1713991912535,-1959.2105043,0.00011505,2]
[323447604,1713991912545,-158.3969132,0.00011505,2]
[323447605,1713991912555,-819.0,0.00011859,2]
[323447606,1713991912565,-150.0,0.00013612,2]
[323447607,1713991912575,-31931.31344096,0.0002,5]
[323447608,1713991912586,-3462.62223728,0.0002,5]
[323447609,1713991912600,-500.0,0.0002,5]
[323447610,1713991912614,-15258.31412161,0.0002,5]
[323447611,1713991912626,-317.0830594,0.0002,5]
[323447612,1713991912638,-409.20495899,0.0002,5]
[323447613,1713991912650,-1556.7999962,0.0002,5]
[323447614,1713991984966,-155.0,0.00010745,2]
[323447615,1713991984990,-6064.19583754,0.00010746,2]
[323447616,1713991985013,-209.85536267,0.00010756,2]
[323447617,1713991985045,-25560.32753846,0.00010757,2]
[323447618,1713991985070,-39101.3112444,0.00010757,2]
[323447619,1713991985095,-245000.0,0.00010758,2]
[323447620,1713991985119,-1561.5369,0.00010758,2]
[323447621,1713991985143,-400.0,0.000108,3]
[323447622,1713991985168,-1568.46147692,0.00010858,2]
[323447623,1713991985192,-900.0,0.000109,3]
[323447624,1713991985218,-150.0,0.00010917,2]
[323447625,1713991985243,-1056.0441035,0.00010956,3]
[323447626,1713991985267,-685723.2474071,0.00010957,2]
[323447627,1713991985297,-8489.62,0.00010958,2]
[323447628,1713991985322,-500.0,0.00010958,2]
[323447629,1713991985349,-552.13,0.00010958,2]
[323447630,1713991985374,-500.0,0.00010958,2]
[323447631,1713991985399,-500.0,0.00010958,2]
[323447632,1713991985424,-500.0,0.00010958,2]
[323447633,1713991985447,-500.0,0.00010958,2]